[Event "December 5 Early 2023"]
[Site "https://www.chess.com"]
[Date "2023.12.05"]
[Round "6"]
[White "Kazmaier, Daniel"]
[Black "Franchini, Gabriele"]
[Result "1-0"]
[Board "176"]
[TimeControl "180+1"]
[WhiteFideId "2606089"]
[BlackFideId "806790"]
[WhiteElo "2435"]
[BlackElo "2294"]
[WhiteTeam "CAN"]
[BlackTeam "ITA"]
[WhiteClock "0:00:16"]
[BlackClock "0:00:00"]

1. e4 {[%clk 0:03:00]}  e6 {[%clk 0:03:00]} 2. Nc3 {[%clk 0:02:59]}  d5 {[%clk 0:03:00]} 3. d4 {[%clk 0:03:00]}  Nf6 {[%clk 0:03:00]} 4. Bg5 {[%clk 0:02:58]}  Be7 {[%clk 0:02:59]} 5. e5 {[%clk 0:02:58]}  Nfd7 {[%clk 0:02:59]} 6. h4 {[%clk 0:02:59]}  h6 {[%clk 0:03:00]} 7. Be3 {[%clk 0:02:53]}  c5 {[%clk 0:03:00]} 8. Qg4 {[%clk 0:02:51]}  Kf8 {[%clk 0:02:58]} 9. Nf3 {[%clk 0:02:47]}  cxd4 {[%clk 0:02:49]} 10. Bxd4 {[%clk 0:02:47]}  Nc6 {[%clk 0:02:49]} 11. Bd3 {[%clk 0:02:32]}  Nxd4 {[%clk 0:02:41]} 12. Qxd4 {[%clk 0:02:33]}  a6 {[%clk 0:02:36]} 13. Qf4 {[%clk 0:02:25]}  Nc5 {[%clk 0:01:56]} 14. Bg6 {[%clk 0:02:23]}  Qe8 {[%clk 0:01:56]} 15. Nd4 {[%clk 0:02:15]}  Kg8 {[%clk 0:01:52]} 16. Bh5 {[%clk 0:01:57]}  Bd7 {[%clk 0:01:48]} 17. O-O-O {[%clk 0:01:38]}  g6 {[%clk 0:01:48]} 18. Bf3 {[%clk 0:01:32]}  Kg7 {[%clk 0:01:48]} 19. Kb1 {[%clk 0:01:30]}  b5 {[%clk 0:01:47]} 20. h5 {[%clk 0:01:20]}  b4 {[%clk 0:01:43]} 21. Nce2 {[%clk 0:01:15]}  a5 {[%clk 0:01:42]} 22. Ng3 {[%clk 0:01:02]}  b3 {[%clk 0:01:27]} 23. cxb3 {[%clk 0:01:01]}  a4 {[%clk 0:01:27]} 24. b4 {[%clk 0:01:01]}  Na6 {[%clk 0:01:17]} 25. a3 {[%clk 0:01:01]}  Bg5 {[%clk 0:00:50]} 26. Qg4 {[%clk 0:00:59]}  Qe7 {[%clk 0:00:47]} 27. Be2 {[%clk 0:00:58]}  Nxb4 {[%clk 0:00:46]} 28. f4 {[%clk 0:00:56]}  f5 {[%clk 0:00:23]} 29. exf6+ {[%clk 0:00:47]}  Bxf6 {[%clk 0:00:23]} 30. Qxg6+ {[%clk 0:00:47]}  Kf8 {[%clk 0:00:23]} 31. axb4 {[%clk 0:00:38]}  a3 {[%clk 0:00:24]} 32. b3 {[%clk 0:00:27]}  Bg7 {[%clk 0:00:24]} 33. Ka2 {[%clk 0:00:24]}  Rg8 {[%clk 0:00:12]} 34. Qd3 {[%clk 0:00:17]}  Qxb4 {[%clk 0:00:12]} 35. Bf3 {[%clk 0:00:18]}  Rb8 {[%clk 0:00:07]} 36. Nge2 {[%clk 0:00:17]}  Bxd4 {[%clk 0:00:04]} 37. Nxd4 {[%clk 0:00:18]}  Rg3 {[%clk 0:00:04]} 38. Rhe1 {[%clk 0:00:17]}  Be8 {[%clk 0:00:02]} 39. Nxe6+ {[%clk 0:00:17]}  Kg8 {[%clk 0:00:02]} 40. f5 {[%clk 0:00:17]}  Rg7 {[%clk 0:00:00]} 41. Bxd5 {[%clk 0:00:16]} 1-0

[Event "December 5 Early 2023"]
[Site "https://www.chess.com"]
[Date "2023.12.05"]
[Round "6"]
[White "Buscar, Michael"]
[Black "Ghosh, Chanchal Kumer"]
[Result "1-0"]
[Board "187"]
[TimeControl "180+1"]
[WhiteFideId "2603616"]
[BlackFideId "10201858"]
[WhiteElo "2342"]
[BlackElo "2065"]
[WhiteTeam "CAN"]
[BlackTeam "BAN"]
[WhiteClock "0:00:29"]
[BlackClock "0:00:13"]

1. Nf3 {[%clk 0:02:49]}  d5 {[%clk 0:02:59]} 2. g3 {[%clk 0:02:49]}  e6 {[%clk 0:02:58]} 3. Bg2 {[%clk 0:02:49]}  Nf6 {[%clk 0:02:58]} 4. O-O {[%clk 0:02:50]}  c5 {[%clk 0:02:58]} 5. d4 {[%clk 0:02:49]}  Nc6 {[%clk 0:02:58]} 6. c4 {[%clk 0:02:49]}  cxd4 {[%clk 0:02:52]} 7. cxd5 {[%clk 0:02:46]}  Nxd5 {[%clk 0:02:35]} 8. Nxd4 {[%clk 0:02:44]}  Bc5 {[%clk 0:02:25]} 9. Nxc6 {[%clk 0:02:37]}  bxc6 {[%clk 0:02:24]} 10. Nc3 {[%clk 0:02:32]}  O-O {[%clk 0:02:22]} 11. Ne4 {[%clk 0:02:33]}  Be7 {[%clk 0:02:20]} 12. Qa4 {[%clk 0:02:27]}  c5 {[%clk 0:02:07]} 13. Rd1 {[%clk 0:02:19]}  Qc7 {[%clk 0:02:00]} 14. Bg5 {[%clk 0:02:01]}  Bb7 {[%clk 0:01:49]} 15. Rac1 {[%clk 0:01:51]}  Rfc8 {[%clk 0:01:30]} 16. Bxe7 {[%clk 0:00:55]}  Qxe7 {[%clk 0:01:28]} 17. Qa3 {[%clk 0:00:53]}  c4 {[%clk 0:00:51]} 18. Qxe7 {[%clk 0:00:43]}  Nxe7 {[%clk 0:00:50]} 19. Nd6 {[%clk 0:00:44]}  Bxg2 {[%clk 0:00:44]} 20. Nxc8 {[%clk 0:00:44]}  Rxc8 {[%clk 0:00:42]} 21. Kxg2 {[%clk 0:00:39]}  Nd5 {[%clk 0:00:19]} 22. e4 {[%clk 0:00:33]}  Nf6 {[%clk 0:00:20]} 23. Rxc4 {[%clk 0:00:32]}  Rb8 {[%clk 0:00:13]} 24. Rdc1 {[%clk 0:00:29]} 1-0

[Event "December 5 Early 2023"]
[Site "https://www.chess.com"]
[Date "2023.12.05"]
[Round "6"]
[White "Mende, Andreas"]
[Black "Tarasova, Viktoriya"]
[Result "0-1"]
[Board "188"]
[TimeControl "180+1"]
[WhiteFideId "4631102"]
[BlackFideId "4175840"]
[WhiteElo "2099"]
[BlackElo "2332"]
[WhiteTeam "GER"]
[BlackTeam "RUS"]
[WhiteClock "0:00:00"]
[BlackClock "0:00:08"]

1. c4 {[%clk 0:03:00]}  Nf6 {[%clk 0:02:59]} 2. g3 {[%clk 0:03:00]}  e5 {[%clk 0:02:57]} 3. Bg2 {[%clk 0:03:00]}  c6 {[%clk 0:02:50]} 4. Nf3 {[%clk 0:02:56]}  e4 {[%clk 0:02:50]} 5. Nd4 {[%clk 0:02:56]}  d5 {[%clk 0:02:49]} 6. cxd5 {[%clk 0:02:55]}  Qxd5 {[%clk 0:02:49]} 7. Nc2 {[%clk 0:02:55]}  Be7 {[%clk 0:02:41]} 8. Nc3 {[%clk 0:02:54]}  Qe5 {[%clk 0:02:41]} 9. d3 {[%clk 0:02:34]}  exd3 {[%clk 0:02:40]} 10. Qxd3 {[%clk 0:02:34]}  Na6 {[%clk 0:02:35]} 11. Bf4 {[%clk 0:02:33]}  Qh5 {[%clk 0:02:33]} 12. O-O {[%clk 0:02:29]}  O-O {[%clk 0:02:31]} 13. Rad1 {[%clk 0:02:12]}  Nc5 {[%clk 0:02:28]} 14. Qd2 {[%clk 0:01:53]}  Bh3 {[%clk 0:02:24]} 15. b4 {[%clk 0:01:29]}  Na6 {[%clk 0:02:21]} 16. a3 {[%clk 0:01:27]}  Bxg2 {[%clk 0:02:21]} 17. Kxg2 {[%clk 0:01:27]}  Rad8 {[%clk 0:02:20]} 18. Qe3 {[%clk 0:01:24]}  Rxd1 {[%clk 0:01:04]} 19. Nxd1 {[%clk 0:01:23]}  Re8 {[%clk 0:00:50]} 20. Qf3 {[%clk 0:01:16]}  Qg6 {[%clk 0:00:43]} 21. Nce3 {[%clk 0:01:05]}  Ne4 {[%clk 0:00:43]} 22. h4 {[%clk 0:00:57]}  Nd2 {[%clk 0:00:42]} 23. Qg4 {[%clk 0:00:53]}  Qxg4 {[%clk 0:00:40]} 24. Nxg4 {[%clk 0:00:52]}  Nxf1 {[%clk 0:00:41]} 25. Kxf1 {[%clk 0:00:52]}  f6 {[%clk 0:00:38]} 26. Nde3 {[%clk 0:00:51]}  g6 {[%clk 0:00:37]} 27. Nc4 {[%clk 0:00:46]}  Kf7 {[%clk 0:00:36]} 28. Bd6 {[%clk 0:00:44]}  Rd8 {[%clk 0:00:34]} 29. Bf4 {[%clk 0:00:38]}  Rd1+ {[%clk 0:00:33]} 30. Kg2 {[%clk 0:00:37]}  Ke6 {[%clk 0:00:28]} 31. Na5 {[%clk 0:00:37]}  Rd7 {[%clk 0:00:25]} 32. Nh2 {[%clk 0:00:32]}  h5 {[%clk 0:00:25]} 33. Nf3 {[%clk 0:00:31]}  Kd5 {[%clk 0:00:21]} 34. Be3 {[%clk 0:00:31]}  b6 {[%clk 0:00:20]} 35. Nb3 {[%clk 0:00:30]}  c5 {[%clk 0:00:18]} 36. b5 {[%clk 0:00:29]}  Nc7 {[%clk 0:00:18]} 37. a4 {[%clk 0:00:29]}  Kc4 {[%clk 0:00:17]} 38. Nbd2+ {[%clk 0:00:28]}  Kb4 {[%clk 0:00:17]} 39. Ne4 {[%clk 0:00:26]}  Kxa4 {[%clk 0:00:17]} 40. Nc3+ {[%clk 0:00:26]}  Kb3 {[%clk 0:00:17]} 41. Ne4 {[%clk 0:00:25]}  Nxb5 {[%clk 0:00:17]} 42. Nfd2+ {[%clk 0:00:23]}  Kb4 {[%clk 0:00:16]} 43. Nf3 {[%clk 0:00:22]}  a5 {[%clk 0:00:15]} 44. Ne1 {[%clk 0:00:19]}  a4 {[%clk 0:00:15]} 45. Nd3+ {[%clk 0:00:19]}  Kb3 {[%clk 0:00:13]} 46. Nd2+ {[%clk 0:00:18]}  Kc2 {[%clk 0:00:13]} 47. Nc4 {[%clk 0:00:17]}  a3 {[%clk 0:00:10]} 48. Nxa3+ {[%clk 0:00:06]}  Nxa3 {[%clk 0:00:10]} 49. Nf4 {[%clk 0:00:06]}  g5 {[%clk 0:00:10]} 50. Ne6 {[%clk 0:00:06]}  gxh4 {[%clk 0:00:09]} 51. gxh4 {[%clk 0:00:05]}  b5 {[%clk 0:00:09]} 52. Nxc5 {[%clk 0:00:04]}  Bxc5 {[%clk 0:00:08]} 53. Bxc5 {[%clk 0:00:05]}  Nc4 {[%clk 0:00:07]} 54. Bb4 {[%clk 0:00:04]}  Kb3 {[%clk 0:00:08]} 55. Bc5 {[%clk 0:00:00]}  b4 {[%clk 0:00:08]} 0-1

[Event "December 5 Early 2023"]
[Site "https://www.chess.com"]
[Date "2023.12.05"]
[Round "6"]
[White "BestestBP"]
[Black "IranianCheetah"]
[Result "0-1"]
[Board "189"]
[TimeControl "180+1"]
[WhiteElo "2057"]
[BlackElo "2323"]
[WhiteClock "0:00:00"]
[BlackClock "0:00:27"]

1. d4 {[%clk 0:02:59]}  d5 {[%clk 0:02:49]} 2. Nf3 {[%clk 0:02:56]}  Nf6 {[%clk 0:02:49]} 3. c4 {[%clk 0:02:55]}  c6 {[%clk 0:02:48]} 4. g3 {[%clk 0:02:53]}  e6 {[%clk 0:02:45]} 5. Bg2 {[%clk 0:02:52]}  Bd6 {[%clk 0:02:45]} 6. O-O {[%clk 0:02:50]}  O-O {[%clk 0:02:45]} 7. Qc2 {[%clk 0:02:44]}  Ne4 {[%clk 0:02:45]} 8. Nbd2 {[%clk 0:02:32]}  f5 {[%clk 0:02:44]} 9. Nb3 {[%clk 0:02:18]}  Nd7 {[%clk 0:02:39]} 10. Nfd2 {[%clk 0:02:13]}  Ndf6 {[%clk 0:02:31]} 11. f3 {[%clk 0:02:10]}  Nxd2 {[%clk 0:02:29]} 12. Nxd2 {[%clk 0:01:51]}  f4 {[%clk 0:02:28]} 13. g4 {[%clk 0:01:28]}  Bd7 {[%clk 0:02:19]} 14. c5 {[%clk 0:01:18]}  Bc7 {[%clk 0:02:18]} 15. Nb3 {[%clk 0:00:58]}  Be8 {[%clk 0:02:17]} 16. e3 {[%clk 0:00:47]}  Bg6 {[%clk 0:02:06]} 17. Qe2 {[%clk 0:00:37]}  h5 {[%clk 0:01:48]} 18. g5 {[%clk 0:00:29]}  Nd7 {[%clk 0:01:43]} 19. h4 {[%clk 0:00:27]}  e5 {[%clk 0:01:36]} 20. exf4 {[%clk 0:00:16]}  exf4 {[%clk 0:01:32]} 21. Bh3 {[%clk 0:00:16]}  Re8 {[%clk 0:01:30]} 22. Qh2 {[%clk 0:00:15]}  b6 {[%clk 0:01:16]} 23. Bxf4 {[%clk 0:00:13]}  Bxf4 {[%clk 0:01:16]} 24. Qxf4 {[%clk 0:00:14]}  bxc5 {[%clk 0:01:15]} 25. dxc5 {[%clk 0:00:13]}  Re2 {[%clk 0:01:08]} 26. Rae1 {[%clk 0:00:12]}  Rxb2 {[%clk 0:00:59]} 27. Re6 {[%clk 0:00:10]}  Nf8 {[%clk 0:00:54]} 28. Rxc6 {[%clk 0:00:09]}  Rxa2 {[%clk 0:00:47]} 29. Re1 {[%clk 0:00:08]}  Rb8 {[%clk 0:00:44]} 30. Rd6 {[%clk 0:00:07]}  Qc7 {[%clk 0:00:40]} 31. Nd4 {[%clk 0:00:03]}  Qxc5 {[%clk 0:00:40]} 32. Kh1 {[%clk 0:00:02]}  Rbb2 {[%clk 0:00:39]} 33. Ne6 {[%clk 0:00:01]}  Rh2+ {[%clk 0:00:29]} 34. Qxh2 {[%clk 0:00:01]}  Rxh2+ {[%clk 0:00:29]} 35. Kxh2 {[%clk 0:00:01]}  Qxd6+ {[%clk 0:00:30]} 36. f4 {[%clk 0:00:01]}  Nxe6 {[%clk 0:00:28]} 37. Rxe6 {[%clk 0:00:01]}  Qxf4+ {[%clk 0:00:28]} 38. Kg1 {[%clk 0:00:00]}  Qg3+ {[%clk 0:00:27]} 0-1

[Event "December 5 Early 2023"]
[Site "https://www.chess.com"]
[Date "2023.12.05"]
[Round "6"]
[White "Korol, Dimitry"]
[Black "Reinecke, Katharina"]
[Result "1/2-1/2"]
[Board "190"]
[TimeControl "180+1"]
[WhiteFideId "14108003"]
[BlackFideId "12929727"]
[WhiteElo "2308"]
[BlackElo "2022"]
[WhiteTeam "UKR"]
[BlackTeam "GER"]
[WhiteClock "0:00:15"]
[BlackClock "0:00:54"]

1. d4 {[%clk 0:03:00]}  d5 {[%clk 0:02:59]} 2. c4 {[%clk 0:03:00]}  c6 {[%clk 0:02:58]} 3. Nc3 {[%clk 0:03:00]}  Nf6 {[%clk 0:02:58]} 4. e3 {[%clk 0:03:00]}  g6 {[%clk 0:02:57]} 5. Nf3 {[%clk 0:03:00]}  Bg7 {[%clk 0:02:57]} 6. h3 {[%clk 0:03:00]}  O-O {[%clk 0:02:56]} 7. Bd3 {[%clk 0:02:59]}  Bf5 {[%clk 0:02:50]} 8. Qc2 {[%clk 0:02:35]}  Bxd3 {[%clk 0:02:49]} 9. Qxd3 {[%clk 0:02:36]}  e6 {[%clk 0:02:48]} 10. O-O {[%clk 0:02:35]}  dxc4 {[%clk 0:02:44]} 11. Qxc4 {[%clk 0:02:35]}  Nbd7 {[%clk 0:02:42]} 12. b3 {[%clk 0:02:32]}  Rc8 {[%clk 0:02:38]} 13. Ba3 {[%clk 0:02:26]}  Re8 {[%clk 0:02:35]} 14. Qe2 {[%clk 0:02:21]}  c5 {[%clk 0:02:32]} 15. Rac1 {[%clk 0:02:18]}  cxd4 {[%clk 0:02:27]} 16. Nxd4 {[%clk 0:02:18]}  Qa5 {[%clk 0:01:57]} 17. Bb2 {[%clk 0:02:12]}  Nb6 {[%clk 0:01:47]} 18. Ndb5 {[%clk 0:01:53]}  Red8 {[%clk 0:01:38]} 19. Rfd1 {[%clk 0:01:49]}  Nbd5 {[%clk 0:01:19]} 20. Nxd5 {[%clk 0:01:46]}  Nxd5 {[%clk 0:01:17]} 21. Bxg7 {[%clk 0:01:40]}  Kxg7 {[%clk 0:01:18]} 22. Rxc8 {[%clk 0:00:34]}  Rxc8 {[%clk 0:01:16]} 23. e4 {[%clk 0:00:34]}  Nc3 {[%clk 0:01:06]} 24. Nxc3 {[%clk 0:00:32]}  Qxc3 {[%clk 0:01:04]} 25. Rd7 {[%clk 0:00:28]}  Rc7 {[%clk 0:01:00]} 26. Rxc7 {[%clk 0:00:21]}  Qxc7 {[%clk 0:01:00]} 27. Qe3 {[%clk 0:00:20]}  a6 {[%clk 0:00:59]} 28. Qd4+ {[%clk 0:00:17]}  e5 {[%clk 0:00:59]} 29. Qd5 {[%clk 0:00:17]}  h5 {[%clk 0:00:58]} 30. g3 {[%clk 0:00:15]}  Kh7 {[%clk 0:00:57]} 31. Kg2 {[%clk 0:00:15]}  Kg7 {[%clk 0:00:57]} 32. h4 {[%clk 0:00:16]}  Kh7 {[%clk 0:00:57]} 33. a4 {[%clk 0:00:16]}  Kg7 {[%clk 0:00:57]} 34. a5 {[%clk 0:00:16]}  Kh7 {[%clk 0:00:56]} 35. b4 {[%clk 0:00:16]}  Kg7 {[%clk 0:00:54]} 36. Kg1 {[%clk 0:00:15]}  Kh7 {[%clk 0:00:54]} 37. Kg2 {[%clk 0:00:15]}  Kg7 {[%clk 0:00:54]} 38. Kg1 {[%clk 0:00:15]}  Kh7 {[%clk 0:00:54]} 39. Kg2 {[%clk 0:00:15]} 1/2-1/2

[Event "December 5 Early 2023"]
[Site "https://www.chess.com"]
[Date "2023.12.05"]
[Round "6"]
[White "Nikulina, Alena"]
[Black "Besso, Guadalupe"]
[Result "0-1"]
[Board "196"]
[TimeControl "180+1"]
[WhiteFideId "4172051"]
[BlackFideId "123161"]
[WhiteElo "2025"]
[BlackElo "2074"]
[WhiteTeam "RUS"]
[BlackTeam "ARG"]
[WhiteClock "0:00:18"]
[BlackClock "0:01:46"]

1. e4 {[%clk 0:02:10]}  c5 {[%clk 0:02:58]} 2. Nf3 {[%clk 0:02:11]}  d6 {[%clk 0:02:57]} 3. d4 {[%clk 0:02:09]}  cxd4 {[%clk 0:02:58]} 4. Nxd4 {[%clk 0:02:08]}  Nf6 {[%clk 0:02:58]} 5. Nc3 {[%clk 0:02:09]}  g6 {[%clk 0:02:57]} 6. Be3 {[%clk 0:02:07]}  Bg7 {[%clk 0:02:57]} 7. f3 {[%clk 0:02:03]}  O-O {[%clk 0:02:57]} 8. g4 {[%clk 0:02:03]}  Nc6 {[%clk 0:02:56]} 9. Qd2 {[%clk 0:01:57]}  Bxg4 {[%clk 0:02:55]} 10. fxg4 {[%clk 0:01:42]}  Nxg4 {[%clk 0:02:53]} 11. Nxc6 {[%clk 0:01:42]}  bxc6 {[%clk 0:02:45]} 12. h3 {[%clk 0:01:36]}  Nxe3 {[%clk 0:02:44]} 13. Qxe3 {[%clk 0:01:36]}  c5 {[%clk 0:02:44]} 14. Bc4 {[%clk 0:01:33]}  Rb8 {[%clk 0:02:44]} 15. Bb3 {[%clk 0:01:32]}  Qa5 {[%clk 0:02:39]} 16. h4 {[%clk 0:01:27]}  c4 {[%clk 0:02:33]} 17. Bxc4 {[%clk 0:01:13]}  Rxb2 {[%clk 0:02:29]} 18. Rh3 {[%clk 0:01:09]}  Rxc2 {[%clk 0:02:26]} 19. Rc1 {[%clk 0:00:52]}  Bxc3+ {[%clk 0:02:21]} 20. Qxc3 {[%clk 0:00:46]}  Rxc3 {[%clk 0:02:21]} 21. Rhxc3 {[%clk 0:00:46]}  Qe5 {[%clk 0:02:12]} 22. Bd5 {[%clk 0:00:41]}  Qh2 {[%clk 0:02:09]} 23. Rf3 {[%clk 0:00:28]}  e6 {[%clk 0:02:06]} 24. Bb7 {[%clk 0:00:27]}  Qh1+ {[%clk 0:02:00]} 25. Rf1 {[%clk 0:00:25]}  Qxh4+ {[%clk 0:01:59]} 26. Ke2 {[%clk 0:00:25]}  Qg4+ {[%clk 0:01:58]} 27. Ke3 {[%clk 0:00:25]}  Qg5+ {[%clk 0:01:57]} 28. Kd3 {[%clk 0:00:25]}  Kg7 {[%clk 0:01:53]} 29. Bc8 {[%clk 0:00:23]}  Rxc8 {[%clk 0:01:49]} 30. Rxc8 {[%clk 0:00:22]}  Qb5+ {[%clk 0:01:47]} 31. Ke3 {[%clk 0:00:18]}  Qxf1 {[%clk 0:01:46]} 0-1

[Event "December 5 Early 2023"]
[Site "https://www.chess.com"]
[Date "2023.12.05"]
[Round "6"]
[White "Minko, Dmitry"]
[Black "Hartikainen, Jarmo"]
[Result "1-0"]
[Board "197"]
[TimeControl "180+1"]
[WhiteFideId "24188468"]
[BlackFideId "503134"]
[WhiteElo "2499"]
[BlackElo "2104"]
[WhiteTeam "FID"]
[BlackTeam "FIN"]
[WhiteClock "0:01:45"]
[BlackClock "0:00:18"]

1. e4 {[%clk 0:03:00]}  c5 {[%clk 0:02:59]} 2. Nf3 {[%clk 0:03:01]}  Nc6 {[%clk 0:02:59]} 3. d4 {[%clk 0:03:01]}  cxd4 {[%clk 0:02:59]} 4. Nxd4 {[%clk 0:03:02]}  Nf6 {[%clk 0:02:59]} 5. Nc3 {[%clk 0:03:03]}  d6 {[%clk 0:03:00]} 6. f3 {[%clk 0:03:02]}  e5 {[%clk 0:02:59]} 7. Nb3 {[%clk 0:03:01]}  h6 {[%clk 0:02:56]} 8. Be3 {[%clk 0:03:01]}  Be6 {[%clk 0:02:56]} 9. Qd2 {[%clk 0:03:01]}  a6 {[%clk 0:02:48]} 10. Nd5 {[%clk 0:03:00]}  Bxd5 {[%clk 0:02:41]} 11. exd5 {[%clk 0:03:01]}  Nb8 {[%clk 0:02:41]} 12. Na5 {[%clk 0:02:59]}  Qc7 {[%clk 0:02:10]} 13. b4 {[%clk 0:02:49]}  Be7 {[%clk 0:02:06]} 14. c4 {[%clk 0:02:47]}  Nbd7 {[%clk 0:01:56]} 15. Bd3 {[%clk 0:02:46]}  Rc8 {[%clk 0:00:56]} 16. O-O {[%clk 0:02:45]}  Bf8 {[%clk 0:00:48]} 17. Rac1 {[%clk 0:02:44]}  g6 {[%clk 0:00:47]} 18. Rfe1 {[%clk 0:02:15]}  Bg7 {[%clk 0:00:44]} 19. Rc2 {[%clk 0:02:05]}  Kf8 {[%clk 0:00:43]} 20. Rec1 {[%clk 0:02:04]}  b6 {[%clk 0:00:36]} 21. Nc6 {[%clk 0:02:02]}  Nb8 {[%clk 0:00:32]} 22. c5 {[%clk 0:01:46]}  bxc5 {[%clk 0:00:28]} 23. bxc5 {[%clk 0:01:46]}  Nxc6 {[%clk 0:00:26]} 24. cxd6 {[%clk 0:01:45]}  Qxd6 {[%clk 0:00:18]} 25. Bc5 {[%clk 0:01:45]} 1-0

[Event "December 5 Early 2023"]
[Site "https://www.chess.com"]
[Date "2023.12.05"]
[Round "6"]
[White "Subramanian, Anusha"]
[Black "Petersson, Kjell"]
[Result "0-1"]
[Board "200"]
[TimeControl "180+1"]
[WhiteFideId "477710"]
[BlackFideId "1705148"]
[WhiteElo "2033"]
[BlackElo "2168"]
[WhiteTeam "ENG"]
[BlackTeam "SWE"]
[WhiteClock "0:00:16"]
[BlackClock "0:00:36"]

1. d4 {[%clk 0:02:59]}  f5 {[%clk 0:02:59]} 2. c4 {[%clk 0:02:59]}  Nf6 {[%clk 0:02:59]} 3. Nc3 {[%clk 0:02:59]}  e6 {[%clk 0:03:00]} 4. g3 {[%clk 0:02:59]}  d5 {[%clk 0:02:58]} 5. Bg2 {[%clk 0:02:58]}  c6 {[%clk 0:02:58]} 6. Bg5 {[%clk 0:02:54]}  Bd6 {[%clk 0:02:52]} 7. e3 {[%clk 0:02:54]}  O-O {[%clk 0:02:50]} 8. Nge2 {[%clk 0:02:54]}  h6 {[%clk 0:02:43]} 9. Bf4 {[%clk 0:02:48]}  b6 {[%clk 0:02:25]} 10. a3 {[%clk 0:02:37]}  Bb7 {[%clk 0:02:23]} 11. b4 {[%clk 0:02:07]}  dxc4 {[%clk 0:02:20]} 12. Bxd6 {[%clk 0:02:02]}  Qxd6 {[%clk 0:02:19]} 13. b5 {[%clk 0:02:02]}  Nd5 {[%clk 0:02:10]} 14. Qa4 {[%clk 0:01:55]}  cxb5 {[%clk 0:02:06]} 15. Nxb5 {[%clk 0:01:50]}  Qd7 {[%clk 0:02:03]} 16. Qxc4 {[%clk 0:01:27]}  Rc8 {[%clk 0:02:01]} 17. Qb3 {[%clk 0:01:21]}  a6 {[%clk 0:01:31]} 18. Nbc3 {[%clk 0:01:06]}  Nxc3 {[%clk 0:01:31]} 19. Bxb7 {[%clk 0:01:05]}  Qxb7 {[%clk 0:01:25]} 20. Nxc3 {[%clk 0:00:48]}  Qxh1+ {[%clk 0:01:24]} 21. Ke2 {[%clk 0:00:47]}  Qc6 {[%clk 0:01:06]} 22. Rc1 {[%clk 0:00:39]}  Qc4+ {[%clk 0:01:05]} 23. Qxc4 {[%clk 0:00:38]}  Rxc4 {[%clk 0:01:06]} 24. Kd3 {[%clk 0:00:39]}  b5 {[%clk 0:01:05]} 25. a4 {[%clk 0:00:39]}  Nd7 {[%clk 0:01:02]} 26. d5 {[%clk 0:00:38]}  exd5 {[%clk 0:01:01]} 27. axb5 {[%clk 0:00:38]}  axb5 {[%clk 0:01:01]} 28. Rb1 {[%clk 0:00:38]}  Nc5+ {[%clk 0:00:55]} 29. Kd2 {[%clk 0:00:36]}  Rb8 {[%clk 0:00:51]} 30. Nxd5 {[%clk 0:00:36]}  Ne4+ {[%clk 0:00:49]} 31. Ke2 {[%clk 0:00:28]}  b4 {[%clk 0:00:44]} 32. Ne7+ {[%clk 0:00:26]}  Kh7 {[%clk 0:00:44]} 33. Nxf5 {[%clk 0:00:26]}  b3 {[%clk 0:00:44]} 34. Nd4 {[%clk 0:00:26]}  b2 {[%clk 0:00:43]} 35. Kd3 {[%clk 0:00:25]}  Nd6 {[%clk 0:00:41]} 36. Nf5 {[%clk 0:00:20]}  Rc1 {[%clk 0:00:38]} 37. Nxd6 {[%clk 0:00:19]}  Rxb1 {[%clk 0:00:38]} 38. Ke4 {[%clk 0:00:19]}  Rd1 {[%clk 0:00:38]} 39. Ke5 {[%clk 0:00:20]}  b1=Q {[%clk 0:00:38]} 40. Ke6 {[%clk 0:00:16]}  Qg6+ {[%clk 0:00:36]} 41. Ke7 {[%clk 0:00:16]}  Qxd6+ {[%clk 0:00:36]} 42. Kf7 {[%clk 0:00:16]}  Rb7+ {[%clk 0:00:36]} 43. Ke8 {[%clk 0:00:16]}  Qb8# {[%clk 0:00:36]} 0-1

[Event "December 5 Early 2023"]
[Site "https://www.chess.com"]
[Date "2023.12.05"]
[Round "6"]
[White "Osiecki, Stanislaw"]
[Black "Saim, Mohamed Ilias"]
[Result "0-1"]
[Board "201"]
[TimeControl "180+1"]
[WhiteFideId "1102990"]
[BlackFideId "7900465"]
[WhiteElo "2125"]
[BlackElo "1992"]
[WhiteTeam "POL"]
[BlackTeam "ALG"]
[WhiteClock "0:00:00"]
[BlackClock "0:00:16"]

1. e4 {[%clk 0:03:00]}  c6 {[%clk 0:03:00]} 2. d4 {[%clk 0:02:57]}  d5 {[%clk 0:03:01]} 3. e5 {[%clk 0:02:56]}  Bf5 {[%clk 0:03:01]} 4. Bd3 {[%clk 0:02:51]}  Bxd3 {[%clk 0:02:59]} 5. Qxd3 {[%clk 0:02:51]}  e6 {[%clk 0:03:00]} 6. Ne2 {[%clk 0:02:48]}  Ne7 {[%clk 0:02:57]} 7. c3 {[%clk 0:02:48]}  h5 {[%clk 0:02:57]} 8. O-O {[%clk 0:02:48]}  Nf5 {[%clk 0:02:56]} 9. Ng3 {[%clk 0:02:48]}  g6 {[%clk 0:02:52]} 10. Nxf5 {[%clk 0:02:48]}  gxf5 {[%clk 0:02:53]} 11. b4 {[%clk 0:02:44]}  Nd7 {[%clk 0:02:49]} 12. Nd2 {[%clk 0:02:40]}  Nb6 {[%clk 0:02:43]} 13. a4 {[%clk 0:02:37]}  Bh6 {[%clk 0:02:34]} 14. f4 {[%clk 0:02:09]}  Rg8 {[%clk 0:02:15]} 15. a5 {[%clk 0:02:04]}  Nc8 {[%clk 0:02:09]} 16. Nf3 {[%clk 0:02:04]}  Ne7 {[%clk 0:02:00]} 17. Ng5 {[%clk 0:02:00]}  Bxg5 {[%clk 0:01:59]} 18. fxg5 {[%clk 0:02:00]}  Ng6 {[%clk 0:01:57]} 19. Qh3 {[%clk 0:01:47]}  Rh8 {[%clk 0:01:55]} 20. a6 {[%clk 0:01:40]}  b6 {[%clk 0:01:52]} 21. Bd2 {[%clk 0:01:37]}  Qe7 {[%clk 0:01:32]} 22. g3 {[%clk 0:01:35]}  Kf8 {[%clk 0:01:31]} 23. Qg2 {[%clk 0:01:28]}  Kg7 {[%clk 0:01:30]} 24. h4 {[%clk 0:01:27]}  Rac8 {[%clk 0:01:22]} 25. Bf4 {[%clk 0:01:23]}  c5 {[%clk 0:01:17]} 26. bxc5 {[%clk 0:01:23]}  bxc5 {[%clk 0:01:17]} 27. Rfb1 {[%clk 0:01:22]}  cxd4 {[%clk 0:01:07]} 28. cxd4 {[%clk 0:01:17]}  Rc7 {[%clk 0:01:03]} 29. Qb2 {[%clk 0:01:09]}  Rhc8 {[%clk 0:00:57]} 30. Rc1 {[%clk 0:00:51]}  Qd7 {[%clk 0:00:48]} 31. Rxc7 {[%clk 0:00:49]}  Rxc7 {[%clk 0:00:44]} 32. Rc1 {[%clk 0:00:45]}  Rxc1+ {[%clk 0:00:39]} 33. Bxc1 {[%clk 0:00:38]}  Qa4 {[%clk 0:00:39]} 34. Be3 {[%clk 0:00:27]}  Qxa6 {[%clk 0:00:37]} 35. Qb8 {[%clk 0:00:27]}  Qb6 {[%clk 0:00:30]} 36. Qxb6 {[%clk 0:00:14]}  axb6 {[%clk 0:00:30]} 37. Kf1 {[%clk 0:00:15]}  Kf8 {[%clk 0:00:27]} 38. Ke2 {[%clk 0:00:15]}  Ke8 {[%clk 0:00:28]} 39. Kd2 {[%clk 0:00:15]}  Kd7 {[%clk 0:00:28]} 40. Kc3 {[%clk 0:00:16]}  Kc6 {[%clk 0:00:28]} 41. Kb4 {[%clk 0:00:16]}  Ne7 {[%clk 0:00:28]} 42. Bc1 {[%clk 0:00:10]}  Nc8 {[%clk 0:00:27]} 43. Ba3 {[%clk 0:00:09]}  Na7 {[%clk 0:00:25]} 44. Bb2 {[%clk 0:00:08]}  Nb5 {[%clk 0:00:25]} 45. Kb3 {[%clk 0:00:08]}  Nc7 {[%clk 0:00:24]} 46. Kb4 {[%clk 0:00:07]}  Na6+ {[%clk 0:00:21]} 47. Kb3 {[%clk 0:00:07]}  Kb5 {[%clk 0:00:21]} 48. Ba3 {[%clk 0:00:07]}  Nc7 {[%clk 0:00:20]} 49. Be7 {[%clk 0:00:06]}  Ka5 {[%clk 0:00:18]} 50. Bb4+ {[%clk 0:00:06]}  Kb5 {[%clk 0:00:17]} 51. Bd6 {[%clk 0:00:06]}  Na6 {[%clk 0:00:16]} 52. Ba3 {[%clk 0:00:06]}  Nb8 {[%clk 0:00:16]} 53. Bd6 {[%clk 0:00:05]}  Nc6 {[%clk 0:00:17]} 54. Kc3 {[%clk 0:00:00]}  Ka4 {[%clk 0:00:16]} 0-1